[Event "December 19 Early 2023"]
[Site "https://www.chess.com"]
[Date "2023.12.19"]
[Round "10"]
[White "Avila Rodriguez, Joshua Ad"]
[Black "Sahib Singh"]
[Result "0-1"]
[Board "64"]
[TimeControl "180+1"]
[WhiteFideId "5126444"]
[BlackFideId "25618342"]
[WhiteElo "2097"]
[BlackElo "2130"]
[WhiteTeam "MEX"]
[BlackTeam "IND"]
[WhiteClock "0:00:00"]
[BlackClock "0:00:20"]

1. e4 {[%clk 0:02:59]}  e6 {[%clk 0:02:55]} 2. d4 {[%clk 0:02:58]}  d5 {[%clk 0:02:56]} 3. e5 {[%clk 0:02:59]}  c5 {[%clk 0:02:56]} 4. c3 {[%clk 0:02:59]}  Qb6 {[%clk 0:02:55]} 5. Nf3 {[%clk 0:03:00]}  Nc6 {[%clk 0:02:55]} 6. a3 {[%clk 0:02:59]}  c4 {[%clk 0:02:53]} 7. Nbd2 {[%clk 0:02:58]}  Na5 {[%clk 0:02:53]} 8. Rb1 {[%clk 0:02:58]}  Bd7 {[%clk 0:02:49]} 9. h4 {[%clk 0:02:58]}  Ne7 {[%clk 0:02:46]} 10. h5 {[%clk 0:02:58]}  h6 {[%clk 0:02:47]} 11. b3 {[%clk 0:02:36]}  cxb3 {[%clk 0:02:28]} 12. Nxb3 {[%clk 0:02:36]}  Ba4 {[%clk 0:02:24]} 13. Nxa5 {[%clk 0:02:14]}  Bxd1 {[%clk 0:02:08]} 14. Rxb6 {[%clk 0:02:14]}  axb6 {[%clk 0:02:09]} 15. Nxb7 {[%clk 0:02:14]}  Bxf3 {[%clk 0:02:07]} 16. Nd6+ {[%clk 0:02:11]}  Kd7 {[%clk 0:02:06]} 17. Nxf7 {[%clk 0:02:06]}  Rh7 {[%clk 0:01:56]} 18. gxf3 {[%clk 0:02:04]}  g5 {[%clk 0:01:55]} 19. hxg6 {[%clk 0:02:01]}  Nxg6 {[%clk 0:01:56]} 20. Bb5+ {[%clk 0:01:50]}  Kc7 {[%clk 0:01:55]} 21. Ng5 {[%clk 0:01:50]}  Re7 {[%clk 0:01:53]} 22. Nh3 {[%clk 0:01:44]}  Rf7 {[%clk 0:01:53]} 23. f4 {[%clk 0:01:33]}  Bxa3 {[%clk 0:01:53]} 24. Bd2 {[%clk 0:01:29]}  Nh4 {[%clk 0:01:50]} 25. Ke2 {[%clk 0:01:29]}  Be7 {[%clk 0:01:49]} 26. Rg1 {[%clk 0:01:27]}  Ra2 {[%clk 0:01:48]} 27. Rg8 {[%clk 0:01:17]}  Nf5 {[%clk 0:01:25]} 28. Rg6 {[%clk 0:01:03]}  Bb4 {[%clk 0:01:08]} 29. Kd3 {[%clk 0:00:51]}  Nxd4 {[%clk 0:01:06]} 30. Be8 {[%clk 0:00:30]}  Re7 {[%clk 0:00:50]} 31. cxb4 {[%clk 0:00:28]}  Rxe8 {[%clk 0:00:43]} 32. Rxh6 {[%clk 0:00:23]}  Nf5 {[%clk 0:00:41]} 33. Rh7+ {[%clk 0:00:23]}  Kc6 {[%clk 0:00:41]} 34. Ng5 {[%clk 0:00:22]}  Ra3+ {[%clk 0:00:35]} 35. Ke2 {[%clk 0:00:20]}  d4 {[%clk 0:00:28]} 36. Rf7 {[%clk 0:00:14]}  d3+ {[%clk 0:00:28]} 37. Kf1 {[%clk 0:00:14]}  Ra2 {[%clk 0:00:28]} 38. Bc3 {[%clk 0:00:07]}  Rc2 {[%clk 0:00:24]} 39. Ne4 {[%clk 0:00:05]}  Ra8 {[%clk 0:00:19]} 40. Rf6 {[%clk 0:00:02]}  Kd5 {[%clk 0:00:20]} 41. Rf7 {[%clk 0:00:00]}  Kxe4 {[%clk 0:00:20]} 0-1

[Event "December 19 Early 2023"]
[Site "https://www.chess.com"]
[Date "2023.12.19"]
[Round "10"]
[White "Tokhirjonova, Gulrukhbegim"]
[Black "Tikhonov, Viacheslav"]
[Result "1-0"]
[Board "67"]
[TimeControl "180+1"]
[WhiteFideId "14203626"]
[BlackFideId "44196407"]
[WhiteElo "2265"]
[BlackElo "2209"]
[WhiteTeam "USA"]
[BlackTeam "RUS"]
[WhiteClock "0:00:23"]
[BlackClock "0:00:01"]

1. Nf3 {[%clk 0:02:59]}  g6 {[%clk 0:02:59]} 2. d4 {[%clk 0:02:57]}  Nf6 {[%clk 0:02:58]} 3. Nc3 {[%clk 0:02:56]}  d5 {[%clk 0:02:58]} 4. Bf4 {[%clk 0:02:55]}  Bg7 {[%clk 0:02:57]} 5. Qd2 {[%clk 0:02:55]}  c6 {[%clk 0:02:55]} 6. h3 {[%clk 0:02:55]}  b5 {[%clk 0:02:53]} 7. a3 {[%clk 0:02:54]}  a5 {[%clk 0:02:52]} 8. g4 {[%clk 0:02:52]}  Bb7 {[%clk 0:02:45]} 9. Bg2 {[%clk 0:02:41]}  Qb6 {[%clk 0:02:15]} 10. Ne5 {[%clk 0:02:38]}  Nbd7 {[%clk 0:02:10]} 11. O-O {[%clk 0:02:35]}  O-O {[%clk 0:01:59]} 12. e3 {[%clk 0:02:13]}  Nxe5 {[%clk 0:01:53]} 13. Bxe5 {[%clk 0:02:08]}  Rfe8 {[%clk 0:01:25]} 14. f4 {[%clk 0:02:06]}  c5 {[%clk 0:00:55]} 15. Kh2 {[%clk 0:01:59]}  e6 {[%clk 0:00:50]} 16. Rae1 {[%clk 0:01:50]}  Rad8 {[%clk 0:00:37]} 17. Qf2 {[%clk 0:01:49]}  Ne4 {[%clk 0:00:26]} 18. Nxe4 {[%clk 0:01:47]}  dxe4 {[%clk 0:00:27]} 19. Bxg7 {[%clk 0:01:47]}  Kxg7 {[%clk 0:00:28]} 20. c3 {[%clk 0:01:47]}  f5 {[%clk 0:00:26]} 21. Qh4 {[%clk 0:01:41]}  cxd4 {[%clk 0:00:20]} 22. cxd4 {[%clk 0:01:40]}  Rc8 {[%clk 0:00:19]} 23. Rf2 {[%clk 0:01:39]}  Qc7 {[%clk 0:00:16]} 24. Ree2 {[%clk 0:01:36]}  Qe7 {[%clk 0:00:16]} 25. Qg3 {[%clk 0:01:35]}  Bd5 {[%clk 0:00:15]} 26. h4 {[%clk 0:01:27]}  Kh8 {[%clk 0:00:14]} 27. Bh3 {[%clk 0:01:23]}  Rg8 {[%clk 0:00:11]} 28. Rg2 {[%clk 0:01:23]}  Qf7 {[%clk 0:00:09]} 29. Qe1 {[%clk 0:01:22]}  a4 {[%clk 0:00:07]} 30. Qb4 {[%clk 0:01:20]}  Qd7 {[%clk 0:00:02]} 31. Rc2 {[%clk 0:01:15]}  Rc4 {[%clk 0:00:02]} 32. Rxc4 {[%clk 0:01:09]}  Bxc4 {[%clk 0:00:03]} 33. d5 {[%clk 0:01:02]}  exd5 {[%clk 0:00:03]} 34. gxf5 {[%clk 0:00:57]}  Qg7 {[%clk 0:00:04]} 35. fxg6 {[%clk 0:00:55]}  hxg6 {[%clk 0:00:05]} 36. h5 {[%clk 0:00:54]}  Qf6 {[%clk 0:00:04]} 37. hxg6 {[%clk 0:00:49]}  Rxg6 {[%clk 0:00:05]} 38. Rxg6 {[%clk 0:00:49]}  Qxg6 {[%clk 0:00:06]} 39. Qf8+ {[%clk 0:00:48]}  Qg8 {[%clk 0:00:07]} 40. Qh6+ {[%clk 0:00:43]}  Qh7 {[%clk 0:00:07]} 41. Qf6+ {[%clk 0:00:43]}  Qg7 {[%clk 0:00:07]} 42. Qd8+ {[%clk 0:00:43]}  Qg8 {[%clk 0:00:05]} 43. Qd6 {[%clk 0:00:41]}  Qg7 {[%clk 0:00:03]} 44. f5 {[%clk 0:00:39]}  Qxb2+ {[%clk 0:00:03]} 45. Kg3 {[%clk 0:00:40]}  Qg7+ {[%clk 0:00:03]} 46. Kf4 {[%clk 0:00:37]}  Qg1 {[%clk 0:00:03]} 47. Qh6+ {[%clk 0:00:35]}  Kg8 {[%clk 0:00:03]} 48. f6 {[%clk 0:00:30]}  Qf2+ {[%clk 0:00:03]} 49. Ke5 {[%clk 0:00:27]}  Qg3+ {[%clk 0:00:03]} 50. Kd4 {[%clk 0:00:24]}  Qg1 {[%clk 0:00:01]} 51. Be6# {[%clk 0:00:23]} 1-0

[Event "December 19 Early 2023"]
[Site "https://www.chess.com"]
[Date "2023.12.19"]
[Round "10"]
[White "Reprintsev, Alexander"]
[Black "Parpiev, Isaak"]
[Result "0-1"]
[Board "69"]
[TimeControl "180+1"]
[WhiteFideId "14100541"]
[BlackFideId "34281576"]
[WhiteElo "2229"]
[BlackElo "2183"]
[WhiteTeam "UKR"]
[BlackTeam "RUS"]
[WhiteClock "0:00:00"]
[BlackClock "0:00:17"]

1. e4 {[%clk 0:02:56]}  e5 {[%clk 0:02:59]} 2. f4 {[%clk 0:02:48]}  exf4 {[%clk 0:02:59]} 3. Bc4 {[%clk 0:02:48]}  Nf6 {[%clk 0:02:54]} 4. Nc3 {[%clk 0:02:47]}  Nc6 {[%clk 0:02:48]} 5. d4 {[%clk 0:02:27]}  d5 {[%clk 0:02:38]} 6. exd5 {[%clk 0:02:20]}  Na5 {[%clk 0:02:38]} 7. Bb5+ {[%clk 0:02:19]}  Bd7 {[%clk 0:02:35]} 8. Qe2+ {[%clk 0:02:15]}  Be7 {[%clk 0:02:33]} 9. Bxf4 {[%clk 0:02:15]}  O-O {[%clk 0:02:29]} 10. O-O-O {[%clk 0:02:13]}  Bb4 {[%clk 0:02:23]} 11. Bxd7 {[%clk 0:02:02]}  Qxd7 {[%clk 0:02:21]} 12. Qb5 {[%clk 0:01:48]}  Bxc3 {[%clk 0:02:10]} 13. Qxd7 {[%clk 0:01:47]}  Bxb2+ {[%clk 0:02:10]} 14. Kxb2 {[%clk 0:01:47]}  Nxd7 {[%clk 0:02:11]} 15. Bxc7 {[%clk 0:01:47]}  Nc4+ {[%clk 0:02:06]} 16. Kb3 {[%clk 0:01:37]}  Ne3 {[%clk 0:02:04]} 17. Rd2 {[%clk 0:01:27]}  Nxd5 {[%clk 0:02:02]} 18. Bd6 {[%clk 0:01:26]}  Rfe8 {[%clk 0:01:58]} 19. c4 {[%clk 0:01:18]}  Re3+ {[%clk 0:01:57]} 20. Kb2 {[%clk 0:01:16]}  N7b6 {[%clk 0:01:50]} 21. Rc2 {[%clk 0:01:10]}  Na4+ {[%clk 0:01:43]} 22. Kc1 {[%clk 0:01:04]}  Ndc3 {[%clk 0:01:40]} 23. Nf3 {[%clk 0:01:00]}  Rc8 {[%clk 0:01:24]} 24. c5 {[%clk 0:00:56]}  Ne4 {[%clk 0:01:19]} 25. Bf4 {[%clk 0:00:46]}  Rc3 {[%clk 0:01:11]} 26. Re1 {[%clk 0:00:44]}  f5 {[%clk 0:01:11]} 27. Nd2 {[%clk 0:00:41]}  Nf6 {[%clk 0:01:04]} 28. Be5 {[%clk 0:00:33]}  Nd5 {[%clk 0:01:03]} 29. Rxc3 {[%clk 0:00:30]}  Naxc3 {[%clk 0:01:03]} 30. Kb2 {[%clk 0:00:30]}  b6 {[%clk 0:01:02]} 31. Nb3 {[%clk 0:00:27]}  bxc5 {[%clk 0:01:01]} 32. dxc5 {[%clk 0:00:24]}  Na4+ {[%clk 0:01:01]} 33. Ka3 {[%clk 0:00:24]}  Nxc5 {[%clk 0:01:01]} 34. Rc1 {[%clk 0:00:21]}  Re8 {[%clk 0:00:50]} 35. Rxc5 {[%clk 0:00:16]}  Rxe5 {[%clk 0:00:50]} 36. Ra5 {[%clk 0:00:16]}  f4 {[%clk 0:00:47]} 37. Rxa7 {[%clk 0:00:16]}  Re2 {[%clk 0:00:46]} 38. Nd4 {[%clk 0:00:12]}  Rxg2 {[%clk 0:00:45]} 39. Rd7 {[%clk 0:00:10]}  Nc3 {[%clk 0:00:45]} 40. Nf3 {[%clk 0:00:09]}  h6 {[%clk 0:00:40]} 41. h4 {[%clk 0:00:09]}  Rxa2+ {[%clk 0:00:32]} 42. Kb3 {[%clk 0:00:08]}  Rf2 {[%clk 0:00:33]} 43. Ne5 {[%clk 0:00:09]}  Ne4 {[%clk 0:00:31]} 44. Kc4 {[%clk 0:00:06]}  Nf6 {[%clk 0:00:30]} 45. Ra7 {[%clk 0:00:05]}  Rh2 {[%clk 0:00:28]} 46. Ng6 {[%clk 0:00:05]}  Rg2 {[%clk 0:00:27]} 47. Ra8+ {[%clk 0:00:05]}  Kf7 {[%clk 0:00:24]} 48. Nh8+ {[%clk 0:00:04]}  Ke6 {[%clk 0:00:24]} 49. Ra6+ {[%clk 0:00:04]}  Kf5 {[%clk 0:00:24]} 50. Ra5+ {[%clk 0:00:03]}  Kg4 {[%clk 0:00:24]} 51. Ng6 {[%clk 0:00:03]}  f3 {[%clk 0:00:24]} 52. Kd3 {[%clk 0:00:03]}  Re2 {[%clk 0:00:17]} 53. Ne5+ {[%clk 0:00:00]}  Kg3 {[%clk 0:00:17]} 0-1

[Event "December 19 Early 2023"]
[Site "https://www.chess.com"]
[Date "2023.12.19"]
[Round "10"]
[White "Iskusnyh, Sergei"]
[Black "Kanyamarala, Tarun"]
[Result "1-0"]
[Board "70"]
[TimeControl "180+1"]
[WhiteFideId "4120027"]
[BlackFideId "45004714"]
[WhiteElo "2455"]
[BlackElo "2318"]
[WhiteTeam "RUS"]
[BlackTeam "IRL"]
[WhiteClock "0:01:21"]
[BlackClock "0:01:00"]

1. d4 {[%clk 0:03:00]}  f5 {[%clk 0:02:55]} 2. g3 {[%clk 0:02:56]}  Nf6 {[%clk 0:02:55]} 3. Bg2 {[%clk 0:02:52]}  g6 {[%clk 0:02:56]} 4. Nd2 {[%clk 0:02:46]}  Bg7 {[%clk 0:02:51]} 5. e4 {[%clk 0:02:41]}  fxe4 {[%clk 0:02:46]} 6. Nxe4 {[%clk 0:02:42]}  O-O {[%clk 0:02:45]} 7. Nxf6+ {[%clk 0:02:37]}  exf6 {[%clk 0:02:40]} 8. c4 {[%clk 0:02:36]}  c6 {[%clk 0:02:36]} 9. Ne2 {[%clk 0:02:34]}  d6 {[%clk 0:02:34]} 10. O-O {[%clk 0:02:29]}  f5 {[%clk 0:02:34]} 11. Bf4 {[%clk 0:02:15]}  Na6 {[%clk 0:02:33]} 12. Qd2 {[%clk 0:02:12]}  Nc7 {[%clk 0:02:29]} 13. Rad1 {[%clk 0:02:08]}  Be6 {[%clk 0:02:24]} 14. d5 {[%clk 0:02:07]}  cxd5 {[%clk 0:02:24]} 15. cxd5 {[%clk 0:02:05]}  Bf7 {[%clk 0:02:23]} 16. Qb4 {[%clk 0:02:00]}  g5 {[%clk 0:01:58]} 17. Bxd6 {[%clk 0:01:54]}  Na6 {[%clk 0:01:58]} 18. Qa3 {[%clk 0:01:52]}  Bxb2 {[%clk 0:01:59]} 19. Qxb2 {[%clk 0:01:51]}  Qxd6 {[%clk 0:01:59]} 20. Nd4 {[%clk 0:01:46]}  Bh5 {[%clk 0:01:48]} 21. Ne6 {[%clk 0:01:39]}  Qd7 {[%clk 0:01:22]} 22. Rc1 {[%clk 0:01:33]}  h6 {[%clk 0:01:16]} 23. Nxf8 {[%clk 0:01:27]}  Rxf8 {[%clk 0:01:13]} 24. Rfe1 {[%clk 0:01:26]}  Bf7 {[%clk 0:01:00]} 25. Qf6 {[%clk 0:01:21]} 1-0

[Event "December 19 Early 2023"]
[Site "https://www.chess.com"]
[Date "2023.12.19"]
[Round "10"]
[White "Namitbir Singh Walia"]
[Black "Bettalli, Francesco"]
[Result "1-0"]
[Board "72"]
[TimeControl "180+1"]
[WhiteFideId "35071068"]
[BlackFideId "2816453"]
[WhiteElo "2239"]
[BlackElo "2226"]
[WhiteTeam "IND"]
[BlackTeam "ITA"]
[WhiteClock "0:00:11"]
[BlackClock "0:00:00"]

1. e4 {[%clk 0:02:55]}  e5 {[%clk 0:02:57]} 2. Nf3 {[%clk 0:02:55]}  Nf6 {[%clk 0:02:51]} 3. Nxe5 {[%clk 0:02:54]}  Nc6 {[%clk 0:02:52]} 4. Nxc6 {[%clk 0:02:53]}  dxc6 {[%clk 0:02:53]} 5. d3 {[%clk 0:02:50]}  Bc5 {[%clk 0:02:51]} 6. h3 {[%clk 0:02:48]}  h5 {[%clk 0:02:27]} 7. g3 {[%clk 0:02:46]}  h4 {[%clk 0:02:15]} 8. Bf4 {[%clk 0:02:34]}  hxg3 {[%clk 0:02:14]} 9. Bxg3 {[%clk 0:02:34]}  Qd4 {[%clk 0:02:12]} 10. Nc3 {[%clk 0:02:28]}  Be6 {[%clk 0:02:06]} 11. Qd2 {[%clk 0:02:24]}  O-O-O {[%clk 0:02:05]} 12. O-O-O {[%clk 0:02:10]}  Bb4 {[%clk 0:02:04]} 13. Qf4 {[%clk 0:02:10]}  Qb6 {[%clk 0:02:00]} 14. Qg5 {[%clk 0:01:43]}  Rh5 {[%clk 0:01:52]} 15. Qxg7 {[%clk 0:01:41]}  Be7 {[%clk 0:01:43]} 16. Be2 {[%clk 0:01:19]}  Ra5 {[%clk 0:01:38]} 17. Bh4 {[%clk 0:01:14]}  Rg8 {[%clk 0:01:23]} 18. Qh6 {[%clk 0:01:08]}  Qd4 {[%clk 0:01:18]} 19. Rhg1 {[%clk 0:01:01]}  Rxg1 {[%clk 0:01:11]} 20. Rxg1 {[%clk 0:01:01]}  Bxa2 {[%clk 0:01:11]} 21. Bxf6 {[%clk 0:00:54]}  Qxf6 {[%clk 0:00:58]} 22. Rg8+ {[%clk 0:00:54]}  Kd7 {[%clk 0:00:58]} 23. Bg4+ {[%clk 0:00:21]}  Kd6 {[%clk 0:00:57]} 24. e5+ {[%clk 0:00:14]}  Rxe5 {[%clk 0:00:34]} 25. Qxf6+ {[%clk 0:00:14]}  Bxf6 {[%clk 0:00:34]} 26. Nxa2 {[%clk 0:00:14]}  Re1+ {[%clk 0:00:28]} 27. Kd2 {[%clk 0:00:14]}  Rf1 {[%clk 0:00:28]} 28. Nc3 {[%clk 0:00:14]}  Be5 {[%clk 0:00:23]} 29. Ne4+ {[%clk 0:00:14]}  Ke7 {[%clk 0:00:24]} 30. c3 {[%clk 0:00:14]}  Rb1 {[%clk 0:00:22]} 31. Kc2 {[%clk 0:00:14]}  Rh1 {[%clk 0:00:22]} 32. Rb8 {[%clk 0:00:12]}  b6 {[%clk 0:00:21]} 33. d4 {[%clk 0:00:09]}  Bf4 {[%clk 0:00:21]} 34. Ra8 {[%clk 0:00:08]}  a5 {[%clk 0:00:21]} 35. Rh8 {[%clk 0:00:05]}  Re1 {[%clk 0:00:17]} 36. Bf5 {[%clk 0:00:04]}  Rc1+ {[%clk 0:00:13]} 37. Kd3 {[%clk 0:00:04]}  Rb1 {[%clk 0:00:14]} 38. Rh7 {[%clk 0:00:04]}  Rxb2 {[%clk 0:00:13]} 39. Bg6 {[%clk 0:00:04]}  a4 {[%clk 0:00:12]} 40. Rxf7+ {[%clk 0:00:05]}  Ke6 {[%clk 0:00:12]} 41. Rxf4 {[%clk 0:00:05]}  a3 {[%clk 0:00:11]} 42. Bf7+ {[%clk 0:00:06]}  Ke7 {[%clk 0:00:12]} 43. Rf5 {[%clk 0:00:04]}  Rb1 {[%clk 0:00:11]} 44. Kc2 {[%clk 0:00:04]}  Rb2+ {[%clk 0:00:11]} 45. Kc1 {[%clk 0:00:04]}  Re2 {[%clk 0:00:11]} 46. Nd2 {[%clk 0:00:04]}  b5 {[%clk 0:00:06]} 47. Bb3 {[%clk 0:00:04]}  Re1+ {[%clk 0:00:06]} 48. Kc2 {[%clk 0:00:04]}  Rh1 {[%clk 0:00:07]} 49. Rh5 {[%clk 0:00:04]}  Kf6 {[%clk 0:00:07]} 50. Rh7 {[%clk 0:00:04]}  Kg5 {[%clk 0:00:07]} 51. Rxc7 {[%clk 0:00:05]}  Rxh3 {[%clk 0:00:06]} 52. Rxc6 {[%clk 0:00:06]}  Kf4 {[%clk 0:00:07]} 53. Rb6 {[%clk 0:00:06]}  Rh2 {[%clk 0:00:07]} 54. Rxb5 {[%clk 0:00:07]}  Rxf2 {[%clk 0:00:07]} 55. Ra5 {[%clk 0:00:07]}  Ke3 {[%clk 0:00:07]} 56. Re5+ {[%clk 0:00:06]}  Kf4 {[%clk 0:00:08]} 57. Re8 {[%clk 0:00:07]}  Rf1 {[%clk 0:00:07]} 58. Kd3 {[%clk 0:00:07]}  Rc1 {[%clk 0:00:06]} 59. Ra8 {[%clk 0:00:07]}  Kg3 {[%clk 0:00:04]} 60. Rxa3 {[%clk 0:00:07]}  Kf2 {[%clk 0:00:05]} 61. Ra8 {[%clk 0:00:08]}  Ke1 {[%clk 0:00:05]} 62. Re8+ {[%clk 0:00:08]}  Kf2 {[%clk 0:00:06]} 63. Re2+ {[%clk 0:00:09]}  Kg3 {[%clk 0:00:06]} 64. d5 {[%clk 0:00:10]}  Rh1 {[%clk 0:00:04]} 65. d6 {[%clk 0:00:10]}  Rh6 {[%clk 0:00:05]} 66. Re6 {[%clk 0:00:10]}  Rh7 {[%clk 0:00:04]} 67. Re7 {[%clk 0:00:10]}  Rh6 {[%clk 0:00:05]} 68. Ne4+ {[%clk 0:00:10]}  Kf4 {[%clk 0:00:05]} 69. d7 {[%clk 0:00:11]}  Rh3+ {[%clk 0:00:05]} 70. Kd4 {[%clk 0:00:11]}  Rh8 {[%clk 0:00:06]} 71. Rf7+ {[%clk 0:00:12]}  Kg4 {[%clk 0:00:04]} 72. Nf6+ {[%clk 0:00:12]}  Kf5 {[%clk 0:00:01]} 73. Ne8+ {[%clk 0:00:13]}  Kg6 {[%clk 0:00:00]} 74. d8=Q {[%clk 0:00:11]} 1-0

[Event "December 19 Early 2023"]
[Site "https://www.chess.com"]
[Date "2023.12.19"]
[Round "10"]
[White "Smolka, Marcin"]
[Black "Eilers, Stefan"]
[Result "1/2-1/2"]
[Board "74"]
[TimeControl "180+1"]
[WhiteFideId "1139681"]
[BlackFideId "4609565"]
[WhiteElo "2117"]
[BlackElo "2457"]
[WhiteTeam "POL"]
[BlackTeam "GER"]
[WhiteClock "0:00:25"]
[BlackClock "0:00:04"]

1. e4 {[%clk 0:03:00]}  g6 {[%clk 0:03:00]} 2. h4 {[%clk 0:03:00]}  h5 {[%clk 0:02:57]} 3. d4 {[%clk 0:03:00]}  Bg7 {[%clk 0:02:57]} 4. Nc3 {[%clk 0:03:00]}  c6 {[%clk 0:02:53]} 5. Bc4 {[%clk 0:02:58]}  Nf6 {[%clk 0:02:47]} 6. e5 {[%clk 0:02:57]}  Nd5 {[%clk 0:02:47]} 7. Nge2 {[%clk 0:02:56]}  d6 {[%clk 0:02:45]} 8. f4 {[%clk 0:02:52]}  Nxc3 {[%clk 0:02:38]} 9. Nxc3 {[%clk 0:02:47]}  Bg4 {[%clk 0:02:33]} 10. Qd3 {[%clk 0:02:42]}  d5 {[%clk 0:02:30]} 11. Bb3 {[%clk 0:02:42]}  e6 {[%clk 0:02:26]} 12. Nd1 {[%clk 0:02:41]}  Bf5 {[%clk 0:02:15]} 13. Qe2 {[%clk 0:02:32]}  Nd7 {[%clk 0:02:14]} 14. Nf2 {[%clk 0:02:28]}  a6 {[%clk 0:02:07]} 15. c3 {[%clk 0:02:28]}  c5 {[%clk 0:02:06]} 16. Be3 {[%clk 0:02:23]}  c4 {[%clk 0:02:02]} 17. Bc2 {[%clk 0:02:23]}  b5 {[%clk 0:02:02]} 18. Kd2 {[%clk 0:02:19]}  a5 {[%clk 0:01:59]} 19. a3 {[%clk 0:02:19]}  Bf8 {[%clk 0:01:53]} 20. Rag1 {[%clk 0:02:09]}  Be7 {[%clk 0:01:52]} 21. g3 {[%clk 0:02:04]}  Qb6 {[%clk 0:01:45]} 22. g4 {[%clk 0:02:00]}  hxg4 {[%clk 0:01:42]} 23. Nxg4 {[%clk 0:01:59]}  O-O-O {[%clk 0:01:07]} 24. Bf2 {[%clk 0:01:58]}  Bxc2 {[%clk 0:01:03]} 25. Kxc2 {[%clk 0:01:58]}  b4 {[%clk 0:01:03]} 26. axb4 {[%clk 0:01:44]}  axb4 {[%clk 0:01:03]} 27. Rb1 {[%clk 0:01:44]}  Kc7 {[%clk 0:00:59]} 28. b3 {[%clk 0:01:45]}  Ra8 {[%clk 0:00:56]} 29. Rhc1 {[%clk 0:01:36]}  bxc3 {[%clk 0:00:44]} 30. Kd1 {[%clk 0:01:32]}  Bxh4 {[%clk 0:00:20]} 31. bxc4 {[%clk 0:01:31]}  Qa6 {[%clk 0:00:18]} 32. cxd5 {[%clk 0:01:25]}  Bxf2 {[%clk 0:00:13]} 33. Qxa6 {[%clk 0:01:07]}  Rxa6 {[%clk 0:00:13]} 34. Rxc3+ {[%clk 0:01:07]}  Kd8 {[%clk 0:00:14]} 35. Nxf2 {[%clk 0:01:08]}  exd5 {[%clk 0:00:12]} 36. Rb2 {[%clk 0:01:06]}  Rh2 {[%clk 0:00:11]} 37. Ke2 {[%clk 0:01:06]}  Nb6 {[%clk 0:00:10]} 38. Kf3 {[%clk 0:01:06]}  Nc4 {[%clk 0:00:10]} 39. Re2 {[%clk 0:01:00]}  Ra1 {[%clk 0:00:09]} 40. Kg3 {[%clk 0:00:59]}  Rh5 {[%clk 0:00:07]} 41. Kg2 {[%clk 0:00:57]}  Kd7 {[%clk 0:00:06]} 42. Rf3 {[%clk 0:00:56]}  Ke6 {[%clk 0:00:06]} 43. Rh3 {[%clk 0:00:47]}  Ra8 {[%clk 0:00:04]} 44. Rxh5 {[%clk 0:00:47]}  gxh5 {[%clk 0:00:05]} 45. Nh1 {[%clk 0:00:47]}  Kf5 {[%clk 0:00:05]} 46. Ng3+ {[%clk 0:00:44]}  Kg4 {[%clk 0:00:05]} 47. Rf2 {[%clk 0:00:40]}  Ra3 {[%clk 0:00:05]} 48. Nf1 {[%clk 0:00:40]}  Ne3+ {[%clk 0:00:04]} 49. Nxe3+ {[%clk 0:00:40]}  Rxe3 {[%clk 0:00:04]} 50. f5 {[%clk 0:00:40]}  Rg3+ {[%clk 0:00:05]} 51. Kf1 {[%clk 0:00:40]}  h4 {[%clk 0:00:05]} 52. f6 {[%clk 0:00:40]}  Re3 {[%clk 0:00:04]} 53. Re2 {[%clk 0:00:39]}  Rf3+ {[%clk 0:00:03]} 54. Rf2 {[%clk 0:00:40]}  Re3 {[%clk 0:00:03]} 55. Re2 {[%clk 0:00:38]}  Rf3+ {[%clk 0:00:03]} 56. Kg2 {[%clk 0:00:35]}  h3+ {[%clk 0:00:03]} 57. Kh2 {[%clk 0:00:36]}  Kf4 {[%clk 0:00:03]} 58. e6 {[%clk 0:00:35]}  fxe6 {[%clk 0:00:04]} 59. Rxe6 {[%clk 0:00:34]}  Kg4 {[%clk 0:00:04]} 60. Kg1 {[%clk 0:00:31]}  Rf4 {[%clk 0:00:02]} 61. Re5 {[%clk 0:00:26]}  Rxd4 {[%clk 0:00:01]} 62. f7 {[%clk 0:00:25]}  Rf4 {[%clk 0:00:02]} 63. Rxd5 {[%clk 0:00:25]}  Rxf7 {[%clk 0:00:02]} 64. Rd1 {[%clk 0:00:25]}  Rf4 {[%clk 0:00:03]} 65. Rc1 {[%clk 0:00:25]}  Re4 {[%clk 0:00:03]} 66. Rd1 {[%clk 0:00:25]}  Rf4 {[%clk 0:00:04]} 67. Rf1 {[%clk 0:00:25]}  Re4 {[%clk 0:00:04]} 68. Rd1 {[%clk 0:00:25]}  Rf4 {[%clk 0:00:04]} 1/2-1/2